bitfinex/quotes_SOLUSD_20251127
["timestamp","ask_amount","ask_price","bid_price","bid_amount"]
[1764257068852,3.1,141.69,141.66,7.05896054]
[1764257069140,3.81,141.69,141.65,24.70810527]
[1764257069310,0.71,141.68,141.65,24.70810527]
[1764257070115,0.71,141.68,141.65,26.52305302]
[1764257070322,0.71,141.68,141.65,27.09305302]
[1764257070521,0.71,141.68,141.65,26.52305302]
[1764257070762,0.71,141.68,141.65,26.43115302]
[1764257070912,0.71,141.68,141.65,7.05965407]
[1764257071638,0.71,141.68,141.61,38.40747873]
[1764257071639,1.81494775,141.66,141.61,17.65342077]
[1764257071839,3.1,141.65,141.61,17.65342077]
[1764257072146,3.81,141.65,141.61,35.77723252]
[1764257072328,0.71,141.64,141.61,35.77723252]
[1764257072531,0.71,141.64,141.62,7.06103913]
[1764257074270,0.71,141.64,141.61,7.06142872]
[1764257074417,1.81494775,141.63,141.6,3.88856536]
[1764257074618,2.52494775,141.64,141.6,0.2]
[1764257074842,0.71,141.63,141.6,7.26208601]
[1764257077432,0.71,141.63,141.6,9.07703376]
[1764257077619,0.71,141.63,141.6,7.26208601]
[1764257081148,0.71,141.63,141.6,7.83208601]
[1764257081448,0.71,141.63,141.6,7.26208601]
[1764257082332,0.71,141.63,141.6,9.07703376]
[1764257084554,0.71,141.63,141.6,7.26208601]
[1764257085032,10.16023711,141.64,141.6,9.07703376]
[1764257085232,0.67,141.63,141.6,9.07703376]
[1764257085755,0.67,141.63,141.6,7.26208601]
[1764257087033,10.83023711,141.64,141.6,7.83208601]
[1764257087233,0.67,141.63,141.6,7.26208601]
[1764257093547,0.67,141.63,141.6,8.42469521]
[1764257098359,0.67,141.63,141.6,7.26208601]
[1764257099962,0.67,141.63,141.6,8.99469521]
[1764257100266,0.67,141.63,141.6,26.65006244]
[1764257100761,0.67,141.63,141.61,1.1626092]
[1764257102163,0.67,141.63,141.6,24.91745324]
[1764257102470,0.67,141.63,141.61,8.22385855]
[1764257102766,3.12,141.64,141.61,26.44797902]
[1764257102946,3.12,141.64,141.62,1.1626092]
[1764257103145,3.79,141.66,141.62,0.57]
[1764257103669,0.67,141.65,141.62,1.7326092]
[1764257103842,0.67,141.65,141.62,1.1626092]
[1764257104242,0.67,141.65,141.63,7.06065099]
[1764257104463,0.67,141.67,141.64,1.1626092]
[1764257105138,0.67,141.67,141.63,25.87488767]
[1764257106670,0.67,141.67,141.63,7.06065099]
[1764257106849,0.67,141.67,141.63,8.22326019]
[1764257108050,1.1626092,141.64,141.6,0.2]
[1764257108257,1.1626092,141.62,141.6,0.2]
[1764257108650,0.67,141.61,141.6,0.2]
[1764257108851,0.67,141.61,141.6,7.26214689]
[1764257109257,0.67,141.61,141.6,0.2]
[1764257109671,0.67,141.61,141.6,7.26214689]
[1764257110943,0.67,141.61,141.6,0.2]
[1764257111446,0.67,141.61,141.6,7.26214689]
[1764257112271,0.67,141.61,141.6,0.2]
[1764257112570,0.67,141.61,141.6,7.26214689]
[1764257113152,0.67,141.61,141.6,0.2]
[1764257118274,7.73164818,141.61,141.6,0.2]
[1764257118677,0.67,141.61,141.6,0.2]
[1764257119483,7.73164818,141.61,141.6,0.2]
[1764257119983,8.89425738,141.61,141.6,0.2]
[1764257122358,7.06133352,141.62,141.6,0.2]
[1764257122557,7.72133352,141.62,141.6,0.2]
[1764257123765,0.66,141.62,141.6,0.2]
[1764257124161,0.66,141.64,141.6,8.99464563]
[1764257124380,3.78,141.64,141.6,8.99464563]
[1764257124591,3.78,141.64,141.61,0.57]
[1764257124888,3.12,141.64,141.61,1.7326092]
[1764257125084,7.71921521,141.66,141.62,1.1626092]
[1764257125275,0.66,141.65,141.61,0.57]
[1764257125477,0.66,141.65,141.62,1.1626092]
[1764257126785,7.71974924,141.65,141.61,8.79417107]
[1764257127481,0.66,141.64,141.61,8.79417107]
[1764257129778,7.05974924,141.65,141.61,8.79417107]
[1764257130092,0.66,141.64,141.61,8.79417107]
[1764257133991,7.72019331,141.64,141.6,0.2]
[1764257134192,4.2626092,141.63,141.6,0.2]
[1764257134399,4.9226092,141.63,141.6,0.2]
[1764257134577,0.66,141.62,141.6,0.2]
[1764257138205,1.1626092,141.61,141.6,0.2]
[1764257138703,1.8226092,141.61,141.6,0.2]
[1764257139607,0.66,141.61,141.6,0.2]
[1764257140495,7.72164818,141.61,141.6,0.2]
[1764257141984,0.66,141.61,141.6,0.2]
[1764257142292,3.78,141.61,141.6,0.2]
[1764257143188,10.84164818,141.61,141.6,0.2]
[1764257144507,3.78,141.61,141.6,0.2]
[1764257145200,10.84164818,141.61,141.6,0.2]
[1764257147096,3.78,141.61,141.6,0.2]
[1764257149107,10.84164818,141.61,141.6,0.2]
[1764257152596,7.72164818,141.61,141.6,0.2]
[1764257152808,10.84164818,141.61,141.6,0.2]
[1764257153715,10.84164818,141.61,141.6,0.03]
[1764257154012,10.84164818,141.61,141.57,7.61845421]
[1764257155618,10.84164818,141.61,141.57,9.43578226]
[1764257157219,7.72164818,141.61,141.57,9.43578226]
[1764257157513,3.12,141.6,141.57,9.43578226]
[1764257157910,0.68,141.59,141.56,12.57063781]
[1764257158116,10.86218769,141.6,141.56,12.57063781]
[1764257159509,3.8,141.6,141.56,13.13063781]
[1764257159695,0.68,141.6,141.56,13.13063781]
[1764257159895,3.12,141.6,141.56,13.13063781]
[1764257160091,3.12,141.6,141.57,1.81732805]
[1764257160795,3.12,141.6,141.57,8.88057794]
[1764257161612,10.86216661,141.6,141.57,7.06324989]
[1764257162003,3.8,141.6,141.57,7.06324989]
[1764257162797,3.8,141.6,141.57,8.88057794]
[1764257162997,3.12,141.6,141.58,2.37732805]
[1764257163197,0.68,141.63,141.58,2.37732805]
[1764257163198,3.12,141.61,141.58,2.37732805]
[1764257163415,3.12,141.62,141.59,0.56]
[1764257163727,23.36867136,141.65,141.61,1.81732805]
[1764257163728,0.68,141.65,141.61,1.81732805]
[1764257163899,3.12,141.65,141.62,1.81732805]
[1764257164423,3.12,141.65,141.61,18.68619205]
[1764257164616,3.8,141.65,141.62,1.81732805]
[1764257165114,3.8,141.65,141.62,8.87801029]
[1764257167423,0.68,141.69,141.64,1.81732805]
[1764257167622,0.68,141.71,141.67,1.81732805]
[1764257167826,3.78,141.71,141.65,0.56]
[1764257168029,3.78,141.71,141.67,1.81732805]
[1764257168504,0.68,141.7,141.67,1.81732805]
[1764257168704,0.68,141.7,141.67,8.87564008]
[1764257169444,0.68,141.74,141.69,1.81732805]
[1764257169605,0.68,141.74,141.68,0.56]
[1764257169606,3.78,141.73,141.68,0.56]
[1764257169926,5.59732805,141.73,141.68,2.37732805]
[1764257170105,0.7,141.72,141.68,2.37732805]
[1764257170702,0.7,141.72,141.69,7.05766109]
[1764257171326,0.7,141.72,141.67,16.308864]
[1764257171621,2.51732805,141.72,141.66,1.81732805]
[1764257172009,0.67,141.71,141.66,1.81732805]
[1764257172407,0.67,141.71,141.66,8.87648377]
[1764257172616,0.67,141.71,141.66,9.43648377]
[1764257173630,9.54399561,141.71,141.66,1.81732805]
[1764257173828,1.81732805,141.7,141.65,7.05945785]
[1764257174034,1.81732805,141.69,141.65,7.05945785]
[1764257174328,0.67,141.69,141.65,8.8767859]
[1764257174525,0.67,141.68,141.65,8.8767859]
[1764257174918,0.67,141.68,141.65,7.61945785]
[1764257175117,0.67,141.68,141.65,9.4367859]
[1764257176115,0.67,141.68,141.65,8.8767859]
[1764257176516,0.67,141.68,141.65,9.4367859]
[1764257177205,3.1,141.69,141.66,1.81732805]
[1764257177411,3.77,141.69,141.66,2.37732805]
[1764257178110,3.77,141.69,141.67,7.05865744]
[1764257179718,3.77,141.69,141.66,7.05895668]
[1764257179912,3.77,141.69,141.66,8.87628473]
[1764257181937,3.1,141.69,141.66,8.87628473]
[1764257182130,0.67,141.68,141.66,8.87628473]
[1764257182435,0.67,141.68,141.66,7.05895668]
[1764257182625,0.67,141.68,141.65,2.37732805]
[1764257182626,0.67,141.68,141.64,25.18602397]
[1764257183215,7.72819043,141.68,141.64,8.87715997]
[1764257183416,7.72819043,141.68,141.64,7.05983192]
[1764257183615,0.67,141.67,141.64,7.05983192]
[1764257184834,0.67,141.67,141.64,9.43715997]
[1764257185038,0.67,141.69,141.65,2.37732805]
[1764257185220,3.77,141.69,141.65,2.37732805]
[1764257185923,3.77,141.69,141.65,1.81732805]
[1764257185924,0.67,141.68,141.65,1.81732805]
[1764257186822,0.67,141.68,141.65,8.87684665]
[1764257187322,0.67,141.68,141.65,9.43684665]
[1764257187518,0.67,141.68,141.65,8.87684665]
[1764257187718,0.67,141.68,141.65,9.43684665]
[1764257189218,0.67,141.68,141.65,8.87684665]
[1764257190726,0.67,141.68,141.65,9.43684665]
[1764257191840,0.67,141.68,141.65,8.87684665]
[1764257194927,0.67,141.7,141.66,2.37732805]
[1764257195243,3.77,141.7,141.67,1.81732805]
[1764257195624,3.77,141.7,141.67,2.37732805]
[1764257195830,0.67,141.71,141.68,1.81732805]
[1764257196030,0.67,141.71,141.69,7.05766109]
[1764257197648,0.67,141.71,141.65,16.308864]
[1764257197649,0.67,141.71,141.66,7.61877441]
[1764257197830,0.67,141.71,141.67,1.81732805]
[1764257198030,0.67,141.71,141.68,7.05815923]
[1764257200347,3.8,141.72,141.68,27.08088536]
[1764257200547,3.1,141.72,141.68,27.08088536]
[1764257200750,0.7,141.71,141.68,26.52088536]
[1764257202936,2.51732805,141.71,141.66,8.87648377]
[1764257203135,0.7,141.71,141.66,8.87648377]
[1764257203438,0.7,141.7,141.67,1.81732805]
[1764257203641,0.7,141.7,141.67,2.37732805]
[1764257203852,0.7,141.7,141.67,1.81732805]
[1764257204033,0.7,141.7,141.67,2.37732805]
[1764257204939,0.7,141.7,141.68,7.05815923]
[1764257205547,0.7,141.7,141.67,8.87577939]
[1764257205953,0.7,141.7,141.67,9.43577939]
[1764257206643,0.7,141.7,141.67,7.05845134]
[1764257207052,0.7,141.7,141.66,7.61894118]
[1764257207357,0.7,141.7,141.67,2.37732805]
[1764257207553,0.7,141.7,141.67,1.81732805]
[1764257208659,0.7,141.71,141.68,9.43548728]
[1764257209164,0.7,141.71,141.68,8.87548728]
[1764257209456,0.7,141.71,141.68,26.52088536]
[1764257209961,0.7,141.71,141.69,1.81732805]
[1764257210159,0.7,141.73,141.7,1.81732805]
[1764257210357,0.7,141.73,141.71,1.81732805]
[1764257210557,0.7,141.73,141.71,1.16076287]
[1764257210855,0.7,141.73,141.72,7.05616709]
[1764257211056,7.05456121,141.76,141.72,8.77692996]
[1764257211057,0.7,141.76,141.72,8.77692996]
[1764257211259,0.7,141.76,141.73,1.72076287]
[1764257211561,17.73244367,141.79,141.75,1.16076287]
[1764257211562,0.7,141.78,141.75,1.16076287]
[1764257211759,0.7,141.78,141.76,1.16076287]
[1764257212341,0.7,141.78,141.74,0.56]
[1764257212535,0.7,141.78,141.75,1.16076287]
[1764257213035,0.7,141.78,141.76,7.05417607]
[1764257217144,0.7,141.78,141.75,8.21522899]
[1764257218655,0.7,141.78,141.75,8.77522899]
[1764257219560,0.8,141.79,141.75,8.77522899]
[1764257220441,0.8,141.79,141.77,1.16076287]
[1764257221574,0.8,141.79,141.77,8.21415253]
[1764257221779,0.1,141.79,141.78,1.16076287]
[1764257222382,0.1,141.79,141.77,8.21415253]
[1764257222541,0.1,141.79,141.78,1.16076287]
[1764257223649,0.1,141.79,141.78,8.21394385]
[1764257223979,0.8,141.79,141.76,27.34807623]
[1764257224144,0.8,141.79,141.76,24.52331722]
[1764257224353,0.8,141.79,141.77,1.16076287]
[1764257224552,0.8,141.79,141.76,24.52331722]
[1764257224965,0.8,141.79,141.75,9.87950518]
[1764257225166,4.26076287,141.78,141.74,7.05494432]
[1764257225364,3.1,141.78,141.74,7.05494432]
[1764257225569,0.7,141.77,141.74,7.05494432]
[1764257225976,3.8,141.77,141.74,7.05494432]
[1764257226171,3.8,141.77,141.74,8.21570719]
[1764257226348,0.7,141.76,141.74,8.21570719]
[1764257228070,3.1,141.77,141.74,8.21570719]
[1764257228264,8.31365867,141.79,141.76,1.16076287]
[1764257228265,0.8,141.79,141.76,1.16076287]
[1764257228573,0.8,141.79,141.77,1.16076287]
[1764257229587,0.8,141.79,141.76,1.16076287]
[1764257229756,0.8,141.79,141.74,41.00173692]
[1764257230069,0.8,141.79,141.74,42.16249979]
[1764257230368,0.8,141.79,141.75,1.16076287]
[1764257230551,3.9,141.79,141.75,1.16076287]
[1764257230754,3.9,141.79,141.75,1.72076287]
[1764257230954,0.7,141.78,141.75,1.16076287]
[1764257231359,0.7,141.78,141.74,8.21570719]
[1764257232678,0.7,141.78,141.73,7.05547456]
[1764257232679,8.91399187,141.78,141.73,7.05547456]
[1764257232970,0.7,141.77,141.73,7.05547456]
[1764257233155,1.86076287,141.77,141.73,7.05547456]
[1764257233562,0.7,141.76,141.73,7.05547456]
[1764257234259,3.8,141.76,141.73,7.05547456]
[1764257234462,3.8,141.76,141.73,8.21623743]
[1764257234669,0.7,141.75,141.73,8.21623743]
[1764257235075,0.7,141.78,141.74,1.72076287]
[1764257235270,0.7,141.78,141.76,1.16076287]
[1764257235472,0.7,141.78,141.75,1.16076287]
[1764257236262,0.7,141.78,141.76,7.05417607]
[1764257236754,0.7,141.78,141.76,8.21493894]
[1764257237156,0.1,141.79,141.77,1.16076287]
[1764257237557,0.8,141.79,141.77,1.16076287]
[1764257238477,0.8,141.79,141.76,8.21493894]
[1764257239866,0.8,141.79,141.76,7.05417607]
[1764257243988,7.85277742,141.79,141.75,7.05448783]
[1764257244377,0.7,141.78,141.75,7.05448783]
[1764257244969,3.8,141.78,141.75,8.2152507]
[1764257245364,0.7,141.77,141.74,7.05517144]
[1764257245582,10.25277742,141.79,141.75,1.16076287]
[1764257245788,0.7,141.78,141.75,1.16076287]
[1764257246503,0.7,141.78,141.75,8.21519806]
[1764257247973,3.2,141.79,141.77,1.16076287]
[1764257248374,3.2,141.79,141.78,1.16076287]
[1764257248779,3.9,141.79,141.77,1.16076287]
[1764257249580,0.7,141.78,141.77,1.16076287]
[1764257249987,0.7,141.78,141.76,1.16076287]
[1764257250301,3.9,141.79,141.76,1.16076287]
[1764257250693,3.2,141.79,141.76,1.16076287]
[1764257250892,3.9,141.79,141.76,1.16076287]
[1764257251499,0.7,141.78,141.77,7.05367849]
[1764257254082,3.9,141.79,141.77,7.05367849]
[1764257254591,0.7,141.78,141.77,7.05367849]
[1764257254777,0.7,141.78,141.76,7.05417607]
[1764257254978,0.7,141.78,141.76,8.21493894]
[1764257255484,3.9,141.79,141.76,25.85037912]
[1764257255684,0.7,141.78,141.76,25.85037912]
[1764257256200,3.9,141.79,141.76,25.85037912]
[1764257256703,0.7,141.78,141.76,7.05417607]
[1764257256877,0.7,141.78,141.75,23.36335526]
[1764257257080,0.7,141.78,141.75,7.05449126]
[1764257257799,1.16076287,141.76,141.71,15.36950026]
[1764257257997,4.26076287,141.75,141.71,15.36950026]
[1764257258205,4.26076287,141.75,141.71,7.05645066]
[1764257258507,0.7,141.74,141.71,7.05645066]
[1764257259010,0.7,141.74,141.69,7.05717629]
[1764257259011,8.91611627,141.74,141.69,7.05717629]
[1764257259177,1.86076287,141.74,141.69,7.05717629]
[1764257259378,0.7,141.73,141.69,8.21793916]
[1764257259783,0.7,141.73,141.69,25.86209188]
[1764257259998,0.7,141.73,141.69,26.42209188]
[1764257262096,0.7,141.73,141.69,25.86209188]
[1764257262697,0.7,141.73,141.69,8.21793916]
[1764257262897,1.16076287,141.71,141.68,3.68492598]
[1764257263096,1.16076287,141.7,141.64,0.56]
[1764257263286,0.69,141.7,141.66,1.16076287]
[1764257263485,0.69,141.69,141.66,1.16076287]
[1764257264189,0.69,141.69,141.67,7.05865744]
[1764257264880,0.69,141.69,141.66,7.05910755]
[1764257265113,7.74777624,141.69,141.64,28.21721983]
[1764257265314,8.90853911,141.69,141.64,27.05645696]
[1764257265524,1.16076287,141.65,141.6,1.16076287]
[1764257265730,0.69,141.64,141.6,1.72076287]
[1764257266304,1.85076287,141.64,141.58,19.37845138]
[1764257266732,1.85076287,141.63,141.58,19.37845138]
[1764257267040,0.69,141.63,141.59,7.06255588]
[1764257267202,0.69,141.62,141.59,7.06255588]
[1764257267400,0.69,141.63,141.6,1.16076287]
[1764257267625,0.69,141.63,141.59,42.74879691]
[1764257268017,0.69,141.63,141.59,42.18879691]
[1764257268411,0.69,141.63,141.59,42.74879691]
[1764257270032,0.69,141.63,141.59,26.43993291]
[1764257270598,0.69,141.63,141.59,27.09595031]
[1764257271625,0.69,141.63,141.59,24.71917004]
[1764257271829,0.69,141.63,141.59,26.53595031]
[1764257274436,0.69,141.63,141.59,27.09595031]
[1764257274642,0.69,141.63,141.59,25.27917004]
[1764257274819,0.69,141.63,141.59,27.09595031]
[1764257275307,0.69,141.63,141.59,26.53595031]
[1764257275514,0.69,141.63,141.59,24.71917004]
[1764257275731,0.69,141.63,141.59,26.53595031]
[1764257275936,0.69,141.63,141.59,27.09595031]
[1764257278231,1.81678027,141.61,141.57,3.6892801]
[1764257278420,7.7508152,141.63,141.54,0.2]
[1764257278421,1.81678027,141.58,141.54,0.2]
[1764257278822,1.81678027,141.58,141.54,7.26500697]
[1764257278823,0.69,141.57,141.54,7.26500697]
[1764257280819,0.69,141.6,141.55,11.18672519]
[1764257281021,0.69,141.6,141.56,7.06414241]
[1764257281232,1.81678027,141.59,141.54,0.2]
[1764257281438,1.81678027,141.59,141.54,16.07487979]
[1764257281616,0.69,141.58,141.54,34.29773128]
[1764257281816,0.69,141.58,141.54,36.11451155]
[1764257282444,0.69,141.58,141.54,33.73773128]
[1764257282622,0.69,141.58,141.54,35.55451155]
[1764257286047,0.69,141.58,141.55,1.81678027]
[1764257286249,1.90185072,141.6,141.55,1.77185072]
[1764257286433,0.69,141.59,141.56,1.21185072]
[1764257286847,0.69,141.59,141.56,0.56]
[1764257287228,0.69,141.59,141.55,1.21185072]
[1764257287559,0.69,141.59,141.55,1.77185072]
[1764257287928,0.69,141.59,141.55,1.21185072]
[1764257288241,3.81,141.61,141.56,26.49634916]
[1764257288450,0.69,141.62,141.58,1.21185072]
[1764257288629,0.69,141.62,141.59,1.21185072]
[1764257289349,0.69,141.62,141.58,1.21185072]
[1764257289537,0.69,141.62,141.58,1.77185072]
[1764257289949,0.69,141.62,141.58,1.21185072]
[1764257290328,0.69,141.62,141.59,7.06264566]
[1764257293732,8.27210602,141.64,141.59,7.62264566]
[1764257293942,0.7,141.63,141.59,7.62264566]
[1764257294128,0.7,141.63,141.59,8.83449638]
[1764257294547,0.7,141.63,141.59,8.27449638]
[1764257295637,0.7,141.63,141.59,8.83449638]
[1764257296650,0.7,141.63,141.59,8.27449638]
[1764257296953,0.7,141.63,141.59,8.83449638]
[1764257297245,0.7,141.63,141.59,26.49111054]
[1764257297450,0.7,141.63,141.6,1.77185072]
[1764257297635,0.7,141.63,141.6,1.21185072]
[1764257298054,0.7,141.63,141.59,25.93111054]
[1764257299253,0.7,141.63,141.59,17.65661416]
[1764257300028,0.7,141.63,141.59,18.86846488]
[1764257300236,0.7,141.63,141.59,25.93111054]
[1764257300953,0.7,141.63,141.59,24.71925982]
[1764257302140,8.97252081,141.63,141.59,7.06264566]
[1764257302455,1.21185072,141.62,141.59,7.06264566]
[1764257302654,3.12,141.61,141.58,7.06294029]
[1764257302840,3.82,141.61,141.58,7.06294029]
[1764257303046,0.7,141.6,141.58,7.06294029]
[1764257303858,0.7,141.6,141.57,7.0634012]
[1764257304242,8.97404076,141.6,141.55,7.06446505]
[1764257304652,0.7,141.59,141.55,7.06446505]
[1764257305059,0.7,141.59,141.55,8.27631577]
[1764257305859,0.7,141.59,141.55,24.72606872]
[1764257306063,0.7,141.59,141.55,25.93791944]
[1764257307743,0.7,141.59,141.56,1.21185072]
[1764257308536,3.12,141.6,141.56,1.21185072]
[1764257308736,3.82,141.6,141.56,1.77185072]
[1764257308948,0.7,141.59,141.56,1.77185072]
[1764257309266,0.7,141.59,141.56,0.56]
[1764257309566,0.7,141.59,141.55,25.93791944]
[1764257310166,0.7,141.59,141.55,24.72606872]
[1764257310336,0.7,141.59,141.55,25.93791944]
[1764257310742,0.7,141.59,141.55,26.45718161]
[1764257310949,0.7,141.59,141.55,27.01718161]
[1764257311934,0.7,141.61,141.59,7.06264566]
[1764257312570,0.7,141.64,141.6,2.29111289]
[1764257312867,0.7,141.63,141.59,25.27925982]
[1764257313046,0.7,141.63,141.6,1.73111289]
[1764257314367,0.7,141.63,141.61,7.06164818]
[1764257316069,0.7,141.63,141.61,8.79276107]
[1764257316243,0.7,141.64,141.61,8.79276107]
[1764257316445,0.7,141.65,141.62,1.73111289]
[1764257316648,10.54105781,141.72,141.64,1.73111289]
[1764257316649,0.7,141.68,141.64,1.73111289]
[1764257316947,3.82,141.68,141.65,1.73111289]
[1764257317461,0.7,141.67,141.65,1.73111289]
[1764257317663,0.7,141.67,141.63,0.56]
[1764257317869,0.7,141.67,141.64,1.73111289]
[1764257318866,0.7,141.67,141.65,8.79076696]
[1764257319049,3.82,141.68,141.65,8.79076696]
[1764257319484,0.7,141.67,141.65,8.79076696]
[1764257319658,0.7,141.67,141.65,7.05965407]
[1764257320185,0.7,141.67,141.65,8.79076696]
[1764257321276,0.7,141.67,141.65,7.05965407]
[1764257324881,0.7,141.67,141.64,7.05994557]
[1764257325787,0.7,141.67,141.64,8.79105846]
[1764257327990,0.7,141.67,141.64,7.05994557]
[1764257328275,0.7,141.67,141.62,8.79205897]
[1764257328276,9.48979829,141.67,141.62,8.79205897]
[1764257328466,7.7586854,141.67,141.62,8.79205897]
[1764257328780,0.65,141.66,141.62,8.79205897]
[1764257332585,0.65,141.66,141.62,8.1678343]
[1764257332974,0.65,141.66,141.63,0.56]
[1764257333174,0.65,141.66,141.63,1.66688822]
[1764257334186,0.65,141.66,141.63,1.10688822]
[1764257334765,0.65,141.66,141.63,8.16736509]
[1764257335074,0.65,141.66,141.63,8.44393204]
[1764257343194,7.70917355,141.66,141.63,7.06047687]
[1764257343488,7.70917355,141.66,141.63,8.44393204]
[1764257343692,0.65,141.65,141.63,7.06047687]
[1764257344990,0.65,141.65,141.63,8.44393204]
[1764257345181,0.65,141.66,141.63,8.44393204]
[1764257345682,10.82889444,141.67,141.64,9.0034344]
[1764257345985,10.82889444,141.67,141.64,8.4434344]
[1764257346195,0.65,141.66,141.64,8.4434344]
[1764257350075,0.65,141.66,141.64,7.05997923]
[1764257350275,0.65,141.66,141.64,8.4434344]
[1764257353097,0.66,141.68,141.64,9.0034344]
[1764257353892,0.66,141.68,141.64,8.4434344]
[1764257354287,0.66,141.68,141.65,1.38345517]
[1764257358080,0.66,141.68,141.65,8.44278682]
[1764257359882,3.76,141.68,141.65,8.44278682]
[1764257360498,0.66,141.67,141.65,8.44278682]
[1764257360704,0.66,141.68,141.65,8.44278682]
[1764257360884,0.66,141.68,141.65,9.00278682]
[1764257361508,0.66,141.68,141.65,8.44278682]
[1764257362086,0.66,141.68,141.65,7.05933165]
[1764257363610,7.71817132,141.68,141.65,7.05933165]
[1764257364204,0.66,141.67,141.65,7.05933165]
[1764257364799,0.66,141.67,141.64,7.05991507]
[1764257366398,0.66,141.67,141.64,8.44337024]
[1764257368907,0.66,141.67,141.64,7.05991507]
[1764257369124,0.66,141.67,141.64,8.44337024]
[1764257372714,0.66,141.67,141.63,8.44410616]
[1764257372908,0.66,141.67,141.64,1.38345517]
[1764257375319,0.66,141.67,141.64,8.44331364]
[1764257381519,7.71873615,141.67,141.62,7.06085704]
[1764257381710,9.10219132,141.67,141.62,7.06085704]
[1764257381894,0.71,141.66,141.62,7.06085704]
[1764257382102,3.1,141.65,141.62,7.06085704]
[1764257382622,0.71,141.64,141.62,7.06085704]
[1764257383316,0.71,141.64,141.63,15.50284231]
[1764257383517,3.1,141.65,141.63,15.50284231]
[1764257383700,3.81,141.65,141.63,15.50284231]
[1764257384927,3.1,141.65,141.63,15.50284231]
[1764257385224,3.1,141.65,141.62,1.38345517]
[1764257385225,0.71,141.64,141.62,7.06097916]
[1764257392726,3.1,141.65,141.63,2.72209359]
[1764257392907,3.1,141.65,141.64,2.16209359]
[1764257394143,3.1,141.65,141.64,9.22224608]
[1764257399413,3.1,141.65,141.64,16.28057772]
[1764257400022,0.71,141.66,141.64,16.28057772]
[1764257401141,3.81,141.67,141.64,16.84057772]
[1764257401350,0.71,141.66,141.64,16.28057772]
[1764257401520,0.71,141.68,141.65,2.72209359]
[1764257401717,16.74454933,141.74,141.67,2.16209359]
[1764257401718,3.81,141.69,141.67,2.16209359]
[1764257402817,0.71,141.68,141.67,2.16209359]
[1764257403018,2.87209359,141.68,141.63,9.22237536]
[1764257403237,7.76833164,141.68,141.63,16.280707]
[1764257403440,0.71,141.67,141.64,2.16209359]
[1764257404713,0.71,141.67,141.63,33.93233448]
[1764257405649,0.71,141.67,141.63,34.49233448]
[1764257406617,0.71,141.67,141.65,2.16209359]
[1764257407051,0.71,141.67,141.64,14.11655604]
[1764257407334,0.71,141.67,141.64,7.0576211]
[1764257407720,0.71,141.67,141.63,7.06028177]
[1764257407926,0.71,141.67,141.63,12.32237536]
[1764257408542,7.76866186,141.67,141.63,12.32237536]
[1764257408743,0.71,141.66,141.63,12.32237536]
[1764257410033,0.67,141.68,141.64,2.72209359]
[1764257410239,3.77,141.68,141.65,2.16209359]
[1764257410444,3.1,141.68,141.66,2.16209359]
[1764257410747,3.77,141.7,141.67,2.16209359]
[1764257410921,0.67,141.69,141.67,2.16209359]
[1764257411922,0.67,141.69,141.67,9.22039701]
[1764257414826,0.67,141.69,141.66,23.33839297]
[1764257415045,0.67,141.69,141.66,9.22106925]
[1764257415844,0.67,141.69,141.65,28.26313282]
[1764257416045,0.67,141.69,141.65,7.05947166]
[1764257416231,21.84418588,141.69,141.65,7.05947166]
[1764257416426,0.67,141.69,141.65,7.05947166]
[1764257416627,0.67,141.68,141.65,7.05947166]
[1764257417546,5.26209359,141.67,141.62,7.06101046]
[1764257417753,5.26209359,141.67,141.62,9.22310405]